fUST/lending_fUST_20241228
["ID","MTS","AMOUNT","RATE_DAILY","PERIOD"]
[346854362,1735327836670,-500.0,0.0001633,2]
[346854364,1735327836680,-500.0,0.00016604,2]
[346854366,1735327836690,-500.0,0.00016604,2]
[346854368,1735327836700,-500.0,0.00016878,2]
[346854370,1735327836709,-5544.33021116,0.00017,2]
[346854372,1735327836719,-181.04404111,0.00017106,2]
[346854374,1735327836728,-896.79,0.00017152,2]
[346854377,1735327836739,-547.28,0.00017152,2]
[346854379,1735327836749,-394.0,0.00017179,2]
[346854381,1735327836759,-1337.87,0.0001726,2]
[346854383,1735327836768,-1200.0,0.00017265,2]
[346854385,1735327836777,-896.79,0.00017426,2]
[346854387,1735327836787,-1337.87,0.00017533,2]
[346854389,1735327836796,-896.79,0.000177,2]
[346854391,1735327836806,-1337.87,0.00017807,2]
[346854393,1735327836815,-500.0,0.00017808,4]
[346854395,1735327836825,-896.79,0.00017974,2]
[346854397,1735327836835,-500.0,0.00018,2]
[346854399,1735327836845,-705.26076897,0.00018,2]
[346854401,1735327836857,-10298.84451605,0.00018,2]
[346854403,1735327836869,-6324.60305962,0.00018,2]
[346854553,1735327838517,-500.0,0.0001359,2]
[346854555,1735327838527,-598.11,0.00013864,2]
[346854558,1735327838537,-3200.29,0.00018,2]
[346854560,1735327838549,-8901.18264146,0.00018,2]
[346854562,1735327838558,-1337.87,0.00018081,2]
[346854564,1735327838567,-896.79,0.00018248,2]
[346854566,1735327838577,-1337.87,0.00018355,2]
[346854568,1735327838586,-896.79,0.00018522,2]
[346854570,1735327838596,-155.61920769,0.00018553,2]
[346854572,1735327838606,-1337.87,0.00018629,2]
[346854574,1735327838615,-2043.12,0.00018793,2]
[346854576,1735327838625,-896.79,0.00018796,2]
[346854578,1735327838633,-151.0,0.00018838,6]
[346854580,1735327838643,-1337.87,0.00018903,2]
[346854582,1735327838653,-82997.09104448,0.00019,2]
[346854584,1735327838664,-2043.12,0.00019067,2]
[346854586,1735327838673,-549.16,0.00019069,2]
[346854588,1735327838682,-500.0,0.00019069,2]
[346854590,1735327838691,-500.0,0.00019069,2]
[346854592,1735327838701,-500.0,0.00019069,2]
[346854594,1735327838710,-503.25,0.00019069,2]
[346854596,1735327838719,-500.0,0.00019069,2]
[346854598,1735327838729,-500.0,0.00019069,2]
[346854600,1735327838738,-500.0,0.00019069,2]
[346854602,1735327838747,-500.0,0.00019069,2]
[346854604,1735327838757,-500.0,0.00019069,2]
[346854606,1735327838766,-508.44650873,0.00019069,2]
[346854608,1735327838775,-500.0,0.00019069,2]
[346854610,1735327838785,-500.0,0.00019069,2]
[346854612,1735327838794,-577.22,0.00019069,2]
[346854614,1735327838803,-591.67,0.00019069,2]
[346854616,1735327838813,-571.63,0.00019069,2]
[346854618,1735327838822,-500.0,0.00019069,2]
[346854620,1735327838831,-500.0,0.00019069,2]
[346854622,1735327838840,-639.52,0.00019069,2]
[346854624,1735327838850,-500.0,0.00019069,2]
[346854627,1735327838866,-500.0,0.00019069,2]
[346854629,1735327838876,-500.0,0.00019069,2]
[346854631,1735327838886,-500.0,0.00019069,2]
[346854633,1735327838895,-2249.17,0.00019069,2]
[346854635,1735327838906,-500.0,0.00019069,2]
[346854637,1735327838915,-500.0,0.00019069,2]
[346854639,1735327838929,-561.21,0.00019069,2]
[346854641,1735327838938,-896.79,0.0001907,2]
[346854643,1735327838948,-1337.87,0.00019177,2]
[346854645,1735327838959,-500.0,0.00019178,2]
[346854647,1735327838970,-500.0,0.00019178,2]
[346854649,1735327838980,-500.0,0.00019178,2]
[346854651,1735327838989,-500.0,0.00019178,2]
[346854653,1735327838999,-500.0,0.00019178,2]
[346854655,1735327839010,-500.0,0.00019178,2]
[346854669,1735327839129,-500.0,0.00019178,2]
[346854671,1735327839139,-500.0,0.00019178,2]
[346854673,1735327839149,-496.33831441,0.00019178,2]
[346854675,1735327839158,-500.0,0.00019178,6]
[346854677,1735327839167,-270.524305,0.00019178,2]
[346854678,1735327839177,-14247.5620923,0.00019178,11]
[346854681,1735327839186,-151.0,0.00019181,7]
[346854683,1735327839196,-402.35182738,0.00019199,2]
[346854685,1735327839206,-696.967,0.000192,2]
[346854687,1735327839218,-171471.463133,0.000192,2]
[346854689,1735327839227,-4677.89087391,0.000192,2]
[346854691,1735327839237,-352.3665978,0.0001926,2]
[346854693,1735327839247,-352.3665978,0.0001926,2]
[346854694,1735327839258,-352.194829,0.0001926,2]
[346854696,1735327839268,-2043.12,0.00019341,2]
[346854698,1735327839277,-500.0,0.00019343,2]
[346854700,1735327839288,-500.0,0.00019343,2]
[346854702,1735327839299,-500.0,0.00019343,2]
[346854704,1735327839308,-500.0,0.00019343,2]
[346854706,1735327839318,-500.0,0.00019343,2]
[346854708,1735327839328,-500.0,0.00019343,2]
[346854711,1735327839338,-500.0,0.00019343,2]
[346854712,1735327839347,-225.86,0.00019343,2]
[346854714,1735327839357,-170.48,0.00019343,2]
[346854716,1735327839367,-500.0,0.00019343,2]
[346854719,1735327839377,-597.78,0.00019343,2]
[346854720,1735327839386,-2249.17,0.00019343,2]
[346854722,1735327839396,-896.79,0.00019344,2]
[346854725,1735327839406,-155.0875379,0.0001937,2]
[346854726,1735327839415,-426.6778935,0.0001937,2]
[346854728,1735327839424,-766.64,0.000194,7]
[346854730,1735327839434,-1337.87,0.00019451,2]
[346854732,1735327839443,-151.0,0.00019523,7]
[346854734,1735327839453,-2043.12,0.00019615,2]
[346854736,1735327839463,-268.41,0.00019617,2]
[346854738,1735327839473,-500.0,0.00019617,2]
[346854740,1735327839482,-500.0,0.00019617,2]
[346854742,1735327839492,-459.39,0.00019617,2]
[346854744,1735327839501,-571.15,0.00019617,2]
[346854746,1735327839511,-224.52,0.00019617,2]
[346854748,1735327839521,-500.0,0.00019617,2]
[346854750,1735327839531,-2249.17,0.00019617,2]
[346854752,1735327839541,-896.79,0.00019618,2]
[346854755,1735327839550,-1337.87,0.00019725,2]
[346854757,1735327839560,-543382.28162379,0.00019848,2]
[346854759,1735327839570,-151.0,0.00019866,7]
[346854761,1735327839579,-151.0,0.00019866,7]
[346854763,1735327839588,-2043.12,0.00019889,2]
[346854764,1735327839597,-569.67,0.00019891,2]
[346854766,1735327839606,-425.49,0.00019891,2]
[346854768,1735327839615,-570.99,0.00019891,2]
[346854770,1735327839625,-2249.17,0.00019891,2]
[346854772,1735327839635,-896.88,0.00019892,2]
[346854774,1735327839644,-181.04404111,0.000199,2]
[346854776,1735327839654,-10310.54764679,0.00019985,2]
[346854778,1735327839664,-10382.26819221,0.00019989,2]
[346854780,1735327839674,-1337.87,0.00019999,2]
[346854782,1735327839684,-14735.1649127,0.0002,2]
[346854785,1735327839694,-10896.53589048,0.0002,2]
[346854786,1735327839704,-5255.80106156,0.0002,30]
[346854788,1735327839713,-15712.66210069,0.0002,2]
[346854790,1735327839723,-57949.202202,0.0002,20]
[346854792,1735327839732,-353.17130942,0.0002,2]
[346854794,1735327839741,-674.2481889,0.00020006,2]
[346854796,1735327839751,-32473.11496532,0.0002001,3]
[346854798,1735327839761,-155.0,0.00020054,2]
[346854800,1735327839771,-155.0,0.00020054,2]
[346854802,1735327839781,-155.0,0.00020054,2]
[346854804,1735327839790,-1826.599999,0.000201,2]
[346854806,1735327839800,-2000.0,0.000201,2]
[346854808,1735327839810,-8025.64643309,0.000201,2]
[346854810,1735327839820,-8025.64643309,0.000201,2]
[346854812,1735327839829,-8025.64643309,0.000201,2]
[346854814,1735327839839,-8025.64643309,0.000201,2]
[346854816,1735327839849,-4599.38832551,0.000201,2]
[346854818,1735327839859,-4599.3883255,0.000201,2]
[346854820,1735327839868,-4599.3883255,0.000201,2]
[346854823,1735327839878,-4599.3883255,0.000201,2]
[346854825,1735327839889,-8025.64643311,0.000201,2]
[346854826,1735327839898,-8025.64643309,0.000201,2]
[346854828,1735327839907,-8025.64643309,0.000201,2]
[346854830,1735327839917,-8025.64643309,0.000201,2]
[346854832,1735327839931,-186.50631282,0.00020117,2]
[346854835,1735327839944,-5000.0,0.00020117,2]
[346854837,1735327839956,-316.3148958,0.00020117,2]
[346854839,1735327839967,-1102.80035607,0.00020117,2]
[346854990,1735327841431,-155.61920769,0.00020117,2]
[346854992,1735327841440,-154.09298051,0.00020118,2]
[346854993,1735327841449,-154.09298051,0.00020118,2]
[346854996,1735327841459,-154.09298051,0.00020118,2]
[346854998,1735327841468,-154.09298051,0.00020118,2]
[346854999,1735327841478,-154.09298051,0.00020118,2]
[346855002,1735327841488,-154.09298051,0.00020118,2]
[346855004,1735327841497,-154.09298051,0.00020118,2]
[346855006,1735327841506,-154.09298051,0.00020118,2]
[346855008,1735327841517,-154.09298051,0.00020118,2]
[346855010,1735327841526,-154.09298051,0.00020118,2]
[346855012,1735327841536,-154.09298051,0.00020118,2]
[346855014,1735327841546,-154.09298051,0.00020118,2]
[346855016,1735327841556,-154.09298051,0.00020118,2]
[346855018,1735327841565,-154.09298051,0.00020118,2]
[346855020,1735327841575,-154.09298051,0.00020118,2]
[346855022,1735327841584,-154.09,0.00020118,2]
[346855024,1735327841593,-184.91157661,0.00020118,2]
[346855026,1735327841603,-184.91157661,0.00020118,2]
[346855028,1735327841612,-184.91157661,0.00020118,2]
[346855030,1735327841621,-184.91157661,0.00020118,2]
[346855032,1735327841630,-184.91157661,0.00020118,2]
[346855034,1735327841640,-184.91157661,0.00020118,2]
[346855036,1735327841649,-184.91157661,0.00020118,2]
[346855038,1735327841659,-184.91157661,0.00020118,2]
[346855040,1735327841669,-184.91157661,0.00020118,2]
[346855042,1735327841678,-184.91157661,0.00020118,2]
[346855044,1735327841687,-184.91157661,0.00020118,2]
[346855046,1735327841696,-184.91157661,0.00020118,2]
[346855048,1735327841706,-184.91157661,0.00020118,2]
[346855050,1735327841715,-184.91157661,0.00020118,2]
[346855052,1735327841724,-184.91157661,0.00020118,2]
[346855054,1735327841734,-184.91157661,0.00020118,2]
[346855056,1735327841743,-184.91157661,0.00020118,2]
[346855058,1735327841752,-184.91157661,0.00020118,2]
[346855060,1735327841761,-184.91157661,0.00020118,2]
[346855062,1735327841770,-184.91,0.00020118,2]
[346855064,1735327841779,-1107.61974669,0.00020118,2]
[346855066,1735327841788,-1107.61974669,0.00020118,2]
[346855068,1735327841798,-1107.61974669,0.00020118,2]
[346855070,1735327841808,-1107.61974669,0.00020118,2]
[346855072,1735327841818,-1107.61974669,0.00020118,2]
[346855074,1735327841827,-1107.61974669,0.00020118,2]
[346855076,1735327841836,-1107.61974669,0.00020118,2]
[346855078,1735327841846,-1107.61974669,0.00020118,2]
[346855080,1735327841856,-1107.61974669,0.00020118,2]
[346855082,1735327841865,-1107.61974669,0.00020118,2]
[346855084,1735327841875,-1107.61974669,0.00020118,2]
[346855086,1735327841884,-1107.61974669,0.00020118,2]
[346855088,1735327841894,-1107.61974669,0.00020118,2]
[346855090,1735327841903,-1107.61974669,0.00020118,2]
[346855100,1735327841912,-1107.61974669,0.00020118,2]
[346855102,1735327842002,-1107.61974669,0.00020118,2]
[346855104,1735327842012,-1107.61974669,0.00020118,2]
[346855106,1735327842022,-1107.61974669,0.00020118,2]
[346855108,1735327842031,-1107.61974669,0.00020118,2]
[346855110,1735327842040,-56.83427702,0.00020118,2]
[346855130,1735327842222,-19.9952632,0.00020118,2]
[346855132,1735327842234,-1030.78045978,0.00020118,2]
[346855134,1735327842243,-1661.42962004,0.00020118,2]
[346855136,1735327842253,-219.37311828,0.00020118,2]
[346855138,1735327842265,-1442.05650176,0.00020118,2]
[346855140,1735327842274,-207.24628724,0.00020118,2]
[346855144,1735327842303,-500.0,0.0001359,2]
[346855146,1735327842313,-1454.1833328,0.00020118,2]
[346855149,1735327842323,-1661.42962004,0.00020118,2]
[346855151,1735327842333,-1661.42962004,0.00020118,2]
[346855153,1735327842343,-1661.42962004,0.00020118,2]
[346855155,1735327842352,-1661.42962004,0.00020118,2]
[346855157,1735327842362,-1661.42962004,0.00020118,2]
[346855159,1735327842372,-1661.42962004,0.00020118,2]
[346855161,1735327842381,-1661.42962004,0.00020118,2]
[346855163,1735327842391,-1661.42962004,0.00020118,2]
[346855165,1735327842401,-1661.42962004,0.00020118,2]
[346855167,1735327842410,-1273.58712801,0.00020118,2]
[346855169,1735327842421,-387.84249203,0.00020118,2]
[346855171,1735327842431,-1661.42962004,0.00020118,2]
[346855173,1735327842441,-1661.42962004,0.00020118,2]
[346855175,1735327842450,-1661.42962004,0.00020118,2]
[346855177,1735327842459,-545.20552786,0.00020118,2]
[346855179,1735327842472,-1116.22409218,0.00020118,2]
[346855181,1735327842481,-1661.42962004,0.00020118,2]
[346855183,1735327842491,-1021.85493776,0.00020118,2]
[346855186,1735327842503,-639.57468228,0.00020118,2]
[346855188,1735327842513,-1661.42,0.00020118,2]
[346855190,1735327842522,-173.46797941,0.00020118,2]
[346855192,1735327842531,-173.46,0.00020118,2]
[346855194,1735327842540,-173.46797941,0.00020118,2]
[346855196,1735327842548,-173.46797941,0.00020118,2]
[346855198,1735327842556,-173.46,0.00020118,2]
[346855200,1735327842565,-2043.12,0.00020163,2]
[346855202,1735327842574,-2249.17,0.00020165,2]
[346855203,1735327842583,-394.0,0.00020179,2]
[346855205,1735327842593,-153.0,0.00020192,2]
[346855208,1735327842604,-153.0,0.00020192,2]
[346855210,1735327842612,-1275.45432211,0.000202,10]
[346855212,1735327842621,-188.0,0.000202,2]
[346855214,1735327842630,-187.55528289,0.00020208,2]
[346855215,1735327842639,-150.23,0.00020209,10]
[346855217,1735327842648,-150.23,0.00020209,10]
[346855220,1735327842658,-155.74300801,0.00020209,10]
[346855221,1735327842667,-151.0,0.00020209,15]
[346855224,1735327842676,-151.0,0.00020209,15]
[346855226,1735327842686,-150.23,0.00020209,10]
[346855228,1735327842695,-150.23,0.00020209,2]
[346855230,1735327842705,-150.23,0.00020209,10]
[346855232,1735327842714,-231.02564149,0.00020209,10]
[346855234,1735327842724,-500.0,0.00020209,10]
[346855236,1735327842733,-150.23,0.00020209,10]
[346855238,1735327842743,-150.23,0.00020209,2]
[346855240,1735327842752,-151.0,0.0002021,2]
[346855242,1735327842761,-151.0,0.0002021,2]
[346855244,1735327842771,-151.0,0.0002021,2]
[346855246,1735327842780,-151.0,0.0002021,2]
[346855248,1735327842789,-151.0,0.0002021,2]
[346855250,1735327842798,-151.0,0.0002021,2]
[346855252,1735327842808,-151.0,0.0002021,2]
[346855254,1735327842818,-151.0,0.0002021,2]
[346855256,1735327842828,-151.0,0.0002021,2]
[346855258,1735327842838,-177.63983,0.0002021,2]
[346855260,1735327842847,-151.0,0.0002021,2]
[346855262,1735327842858,-151.0,0.0002021,2]
[346855264,1735327842868,-151.0,0.0002021,2]
[346855266,1735327842877,-151.0,0.0002021,2]
[346855268,1735327842887,-151.0,0.0002021,2]
[346855270,1735327842897,-151.0,0.0002021,2]
[346855272,1735327842906,-151.0,0.0002021,2]
[346855274,1735327842915,-151.0,0.0002021,2]
[346855276,1735327842927,-151.0,0.0002021,2]
[346855278,1735327842936,-151.0,0.0002021,2]
[346855280,1735327842945,-151.0,0.0002021,2]
[346855282,1735327842954,-151.0,0.0002021,2]
[346855284,1735327842964,-151.0,0.0002021,2]
[346855286,1735327842973,-151.0,0.0002021,2]
[346855288,1735327842983,-151.0,0.0002021,2]
[346855290,1735327842992,-151.0,0.0002021,2]
[346855292,1735327843003,-151.0,0.0002021,2]
[346855294,1735327843012,-151.0,0.0002021,2]
[346855296,1735327843022,-204.074826,0.0002021,2]
[346855298,1735327843030,-151.0,0.00020217,2]
[346855300,1735327843040,-153.445269,0.00020217,2]
[346855302,1735327843050,-151.0,0.00020217,2]
[346855304,1735327843059,-151.0,0.00020217,2]
[346855306,1735327843069,-151.0,0.00020217,2]
[346855308,1735327843078,-151.0,0.00020217,2]
[346855310,1735327843087,-151.0,0.00020217,2]
[346855313,1735327843097,-151.0,0.00020217,2]
[346855316,1735327843106,-151.0,0.00020217,2]
[346855319,1735327843115,-151.0,0.00020217,2]
[346855323,1735327843124,-151.0,0.00020217,2]
[346855325,1735327843133,-151.0,0.00020217,2]
[346855327,1735327843142,-151.0,0.00020217,2]
[346855329,1735327843152,-249.772408,0.00020217,2]
[346855331,1735327843161,-151.0,0.00020217,2]
[346855333,1735327843170,-151.0,0.00020217,2]
[346855335,1735327843179,-151.0,0.00020217,2]
[346855337,1735327843189,-151.0,0.00020217,2]
[346855339,1735327843198,-151.0,0.00020217,2]
[346855341,1735327843207,-217.322102,0.00020217,2]
[346855343,1735327843216,-151.0,0.00020217,2]
[346855345,1735327843226,-151.0,0.00020217,2]
[346855347,1735327843235,-151.0,0.00020217,2]
[346855349,1735327843244,-151.0,0.00020217,2]
[346855351,1735327843253,-151.0,0.00020217,2]
[346855353,1735327843262,-151.0,0.00020217,2]
[346855355,1735327843271,-151.0,0.00020217,2]
[346855357,1735327843280,-151.0,0.00020217,2]
[346855359,1735327843288,-151.0,0.00020217,2]
[346855361,1735327843298,-151.0,0.00020217,2]
[346855363,1735327843307,-151.0,0.00020217,2]
[346855365,1735327843317,-151.0,0.00020217,2]
[346855367,1735327843326,-242.128128,0.00020217,2]
[346855369,1735327843335,-151.0,0.00020217,2]
[346855370,1735327843344,-151.0,0.00020217,2]
[346855373,1735327843354,-151.0,0.00020217,2]
[346855375,1735327843364,-151.0,0.00020217,2]
[346855377,1735327843373,-151.0,0.00020217,2]
[346855378,1735327843383,-151.0,0.00020217,2]
[346855380,1735327843392,-1326.19347254,0.00020218,2]
[346855382,1735327843401,-5287.43799803,0.00020218,2]
[346855385,1735327843415,-3250.0,0.00020218,2]
[346855387,1735327843427,-3305.84805776,0.00020218,2]
[346855407,1735327843614,-500.0,0.00013864,2]
[346855409,1735327843624,-250.648911,0.00014138,2]
[346855420,1735327843723,-249.351089,0.00014138,2]
[346855422,1735327843732,-500.0,0.00014412,2]
[346855424,1735327843741,-598.32,0.00014686,2]
[346855426,1735327843750,-833.02156498,0.000194,2]
[346855428,1735327843766,-256.43244302,0.000194,2]
[346855430,1735327843775,-559.01633412,0.000199,2]
[346855812,1735327847734,-371.35201545,0.0001359,2]
[346855814,1735327847746,-128.64798455,0.0001359,2]
[346855816,1735327847755,-500.0,0.00013864,2]
[346855818,1735327847764,-500.0,0.00014138,2]
[346855820,1735327847774,-500.0,0.00014412,2]
[346855822,1735327847783,-500.0,0.00014686,2]
[346855824,1735327847793,-500.0,0.0001496,2]
[346855826,1735327847802,-440.98366588,0.000199,2]
[346855828,1735327847811,-1200.0,0.000199,2]
[346855830,1735327847821,-8786.97953042,0.00020218,2]
[346855833,1735327847831,-151.0,0.00020218,2]
[346855834,1735327847840,-151.0,0.00020218,2]
[346855836,1735327847849,-166.336024,0.00020218,2]
[346855838,1735327847859,-151.0,0.00020218,2]
[346855841,1735327847869,-151.0,0.00020218,2]
[346855843,1735327847878,-151.0,0.00020218,2]
[346855845,1735327847888,-151.0,0.00020218,2]
[346855846,1735327847897,-151.0,0.00020218,2]
[346855848,1735327847906,-151.0,0.00020218,2]
[346855850,1735327847916,-151.0,0.00020218,2]
[346855852,1735327847928,-151.0,0.00020218,2]
[346855854,1735327847938,-151.0,0.00020218,2]
[346855856,1735327847947,-151.0,0.00020218,2]
[346855858,1735327847957,-151.0,0.00020218,2]
[346855860,1735327847968,-151.0,0.00020218,2]
[346855862,1735327847978,-151.0,0.00020218,2]
[346855864,1735327847987,-151.0,0.00020218,2]
[346855866,1735327847998,-151.0,0.00020218,2]
[346855868,1735327848008,-151.0,0.00020218,2]
[346855870,1735327848018,-151.0,0.00020218,2]
[346855872,1735327848028,-151.0,0.00020218,2]
[346855874,1735327848038,-151.0,0.00020218,2]
[346855876,1735327848048,-151.0,0.00020218,2]
[346855879,1735327848058,-151.0,0.00020218,2]
[346855881,1735327848068,-151.0,0.00020218,2]
[346855883,1735327848079,-151.0,0.00020218,2]
[346855884,1735327848088,-151.0,0.00020218,2]
[346855886,1735327848098,-151.0,0.00020218,2]
[346855888,1735327848107,-151.0,0.00020218,2]
[346855890,1735327848116,-151.0,0.00020218,2]
[346855892,1735327848126,-151.0,0.00020218,2]
[346855895,1735327848136,-151.830043,0.00020218,2]
[346855896,1735327848146,-151.0,0.00020218,2]
[346855898,1735327848156,-151.0,0.00020218,2]
[346855900,1735327848166,-199.440117,0.00020218,2]
[346855903,1735327848176,-29969.51266752,0.00020218,10]
[346855905,1735327848193,-1276.28135683,0.00020218,10]
[346855907,1735327848205,-24975.27566801,0.00020218,10]
[346855910,1735327848216,-18577.59999999,0.00020218,10]
[346858301,1735328745134,-314.8121914,0.0001087,2]
[346858302,1735328745157,-314.8121914,0.0001098,2]
[346858303,1735328745180,-500.0,0.00011899,2]
[346858304,1735328745203,-347.72712366,0.00011899,2]
[346858305,1735328833115,-716.9289003,0.00011129,2]
[346858306,1735328833140,-4724.77249772,0.0001178,2]
[346858307,1735328833165,-300.0,0.00011898,2]
[346858308,1735328833190,-500.0,0.00011899,2]
[346858309,1735328833215,-210.758112,0.00011899,2]
[346858310,1735328833237,-500.0,0.00011899,2]
[346858311,1735328833261,-436.27270791,0.00011899,2]
[346858312,1735328833287,-500.0,0.00011899,2]
[346858313,1735328833314,-500.0,0.00011899,2]
[346858314,1735328833341,-500.0,0.00011899,2]
[346858315,1735328833364,-500.0,0.00011899,2]
[346858316,1735328833392,-500.0,0.00011899,2]
[346858317,1735328833414,-615.83,0.00011899,2]
[346858318,1735328833438,-500.0,0.00011899,2]
[346858319,1735328833463,-500.0,0.00011899,2]
[346858320,1735328833485,-500.0,0.00011899,2]
[346858321,1735328833510,-500.0,0.00011899,2]
[346858322,1735328833534,-500.0,0.00011899,2]
[346858323,1735328833559,-500.0,0.00011899,2]
[346858324,1735328833581,-500.0,0.00011899,2]
[346858325,1735328833604,-500.0,0.00011899,2]
[346858326,1735328833627,-559.64656387,0.00011899,2]
[346858327,1735328833651,-500.0,0.00011899,2]
[346858328,1735328833674,-500.0,0.00011899,2]
[346858329,1735328833696,-500.0,0.00011899,2]
[346858330,1735328833862,-529.47923471,0.00011899,2]
[346858331,1735328833887,-500.0,0.00011899,2]
[346858332,1735328833910,-500.0,0.00011899,2]
[346858333,1735328833935,-500.0,0.00011899,2]
[346858334,1735328833957,-500.0,0.00011899,2]
[346858335,1735328833983,-500.0,0.00011899,2]
[346858336,1735328834007,-500.0,0.00011899,2]
[346858337,1735328834031,-500.0,0.00011899,2]
[346858338,1735328834053,-502.0924749,0.00011899,2]
[346858339,1735328834076,-500.0,0.00011899,2]
[346858340,1735328834097,-500.0,0.00011899,2]
[346858341,1735328834119,-500.0,0.00011899,2]
[346858342,1735328834142,-500.0,0.00011899,2]
[346858343,1735328834166,-500.0,0.00011899,2]
[346858344,1735328834189,-306.21,0.00011899,2]
[346858345,1735328834210,-502.58542783,0.00011899,2]
[346858346,1735328834233,-500.0,0.00011899,2]
[346858347,1735328834256,-500.0,0.00011899,2]
[346858348,1735328834278,-1874.31,0.00011899,2]
[346858349,1735328834303,-500.0,0.00011899,2]
[346858350,1735328834324,-500.0,0.00011899,2]
[346858351,1735328834347,-500.0,0.00011899,2]
[346858352,1735328834368,-301.97387237,0.00011899,2]
[346858353,1735328834391,-500.0,0.00011899,2]
[346858354,1735328834413,-500.0,0.00011899,2]
[346858355,1735328834435,-500.0,0.00011899,2]
[346858356,1735328834460,-500.0,0.00011899,2]
[346858357,1735328834484,-500.0,0.00011899,2]
[346858358,1735328834505,-292.39452017,0.00011899,2]
[346858359,1735328946152,-2574.25803721,0.0001178,2]
[346858360,1735328946172,-207.60547983,0.00011899,2]
[346858361,1735328946193,-500.0,0.00011899,2]
[346858362,1735328946214,-500.0,0.00011899,2]
[346858363,1735328946234,-500.0,0.00011899,2]
[346858364,1735328946254,-500.0,0.00011899,2]
[346858365,1735328946274,-500.0,0.00011899,2]
[346858366,1735328946294,-500.0,0.00011899,2]
[346858367,1735328946314,-307.78403723,0.00011899,2]
[346858368,1735328946337,-231.82504185,0.00011899,2]
[346858369,1735328946359,-500.0,0.00011899,2]
[346858370,1735328946379,-500.0,0.00011899,2]
[346858371,1735328946401,-500.0,0.00011899,2]
[346858372,1735328946421,-500.0,0.00011899,2]
[346858373,1735328946444,-500.0,0.00012022,2]
[346858374,1735328946467,-500.0,0.00012022,2]
[346858375,1735328946490,-500.0,0.00012022,2]
[346858376,1735328946511,-24900.0,0.00012023,2]
[346858377,1735328946532,-500.0,0.00012173,2]
[346858378,1735328946552,-500.0,0.00012173,2]
[346858379,1735328946573,-500.0,0.00012173,2]
[346858380,1735328946594,-569.67,0.00012173,2]
[346858381,1735328946615,-500.0,0.00012173,2]
[346858382,1735328946636,-500.0,0.00012173,2]
[346858383,1735328946657,-428.35,0.00012173,2]
[346858384,1735328946678,-570.99,0.00012173,2]
[346858385,1735328946700,-1874.31,0.00012173,2]
[346858386,1735328946721,-500.0,0.00012173,2]
[346858387,1735328946743,-346.34223364,0.00012173,2]
[346858388,1735328946765,-500.0,0.00012173,2]
[346858389,1735328946788,-500.0,0.00012173,2]
[346858390,1735328946811,-500.0,0.00012173,2]
[346858391,1735328946832,-467.86622911,0.00012173,2]
[346858392,1735328946853,-500.0,0.00012173,2]
[346858393,1735328946874,-500.0,0.00012173,2]
[346858394,1735328946896,-500.0,0.00012296,2]
[346858395,1735328946916,-293.57414167,0.00012296,2]
[346858396,1735328946940,-500.0,0.00012296,2]
[346858397,1735328946961,-500.0,0.00012447,2]
[346858398,1735328946982,-425.49,0.00012447,2]
[346858399,1735328947003,-1874.31,0.00012447,2]
[346858400,1735328947024,-445.59,0.00012447,2]
[346858401,1735328947045,-500.0,0.00012447,2]
[346858402,1735328947068,-500.0,0.0001257,2]
[346858403,1735328947091,-500.0,0.0001257,2]